bitfinex/quotes_SOLUSD_20250721
["timestamp","ask_amount","ask_price","bid_price","bid_amount"]
[1753094555388,5.88832572,191.43,191.41,0.03]
[1753094555695,6.60832572,191.44,191.41,0.03]
[1753094555992,6.60832572,191.42,191.41,0.03]
[1753094556494,5.88832572,191.44,191.41,0.03]
[1753094557067,6.60832572,191.44,191.41,0.03]
[1753094557275,31.22331093,191.45,191.41,0.03]
[1753094557474,0.72,191.43,191.41,0.03]
[1753094557786,6.60832572,191.43,191.41,0.03]
[1753094557988,5.88832572,191.42,191.41,0.03]
[1753094558181,11.83244023,191.42,191.41,0.03]
[1753094558672,31.94411451,191.42,191.41,0.03]
[1753094558871,5.94411451,191.42,191.41,0.03]
[1753094559077,32.60832572,191.42,191.41,0.03]
[1753094560873,5.88832572,191.43,191.41,0.03]
[1753094561094,0.72,191.45,191.41,0.03]
[1753094561481,11.11168261,191.45,191.41,0.03]
[1753094561794,5.88832572,191.42,191.41,0.03]
[1753094562284,0.72,191.42,191.41,0.03]
[1753094562488,6.60832572,191.42,191.41,0.03]
[1753094562679,0.72,191.42,191.41,0.03]
[1753094562991,6.60832572,191.42,191.41,0.03]
[1753094563870,11.83244023,191.42,191.41,0.03]
[1753094564876,5.94411451,191.42,191.41,0.03]
[1753094565075,11.83244023,191.42,191.41,0.03]
[1753094567184,37.83244023,191.42,191.41,0.03]
[1753094568099,32.60832572,191.42,191.41,0.03]
[1753094569203,31.94411451,191.42,191.41,0.03]
[1753094569389,37.83244023,191.42,191.41,0.03]
[1753094569584,37.83244023,191.42,191.37,0.03]
[1753094569790,5.88832572,191.38,191.37,0.03]
[1753094570504,6.60832572,191.38,191.37,0.03]
[1753094570705,11.83353211,191.38,191.37,0.03]
[1753094570880,0.72,191.38,191.37,0.03]
[1753094571205,6.60832572,191.38,191.37,0.03]
[1753094571982,11.83353211,191.38,191.37,0.03]
[1753094574301,5.94520639,191.38,191.37,0.03]
[1753094574479,11.83353211,191.38,191.37,0.03]
[1753094575802,5.94520639,191.38,191.37,0.03]
[1753094576003,11.83353211,191.38,191.37,0.03]
[1753094576810,5.94520639,191.38,191.37,0.03]
[1753094576997,11.83353211,191.38,191.37,0.03]
[1753094578100,0.72,191.38,191.37,0.03]
[1753094578300,6.60832572,191.38,191.37,0.03]
[1753094579209,11.83353211,191.38,191.37,0.03]
[1753094584028,5.88832572,191.38,191.37,0.03]
[1753094584492,6.59832572,191.38,191.37,0.03]
[1753094585617,11.82353211,191.38,191.37,0.03]
[1753094585801,5.22520639,191.38,191.37,0.03]
[1753094586293,11.11353211,191.38,191.37,0.03]
[1753094586703,6.59832572,191.38,191.37,0.03]
[1753094588215,0.71,191.38,191.37,0.03]
[1753094588423,6.59832572,191.38,191.37,0.03]
[1753094588717,11.82353211,191.38,191.37,0.03]
[1753094588915,37.82353211,191.38,191.37,0.03]
[1753094589093,11.82353211,191.38,191.37,0.03]
[1753094590002,56.25661608,191.38,191.37,1e-08]
[1753094590199,36.85201608,191.38,191.37,1e-08]
[1753094592609,30.96369036,191.38,191.37,1e-08]
[1753094592912,36.85201608,191.38,191.37,1e-08]
[1753094593311,56.96369036,191.38,191.37,1e-08]
[1753094593620,74.09201608,191.38,191.37,1e-08]
[1753094593924,20.06733211,191.38,191.37,1e-08]
[1753094594218,50.71193211,191.38,191.37,1e-08]
[1753094597015,67.49661608,191.38,191.37,1e-08]
[1753094597723,50.71193211,191.38,191.37,1e-08]
[1753094598026,49.06353211,191.38,191.37,1e-08]
[1753094599108,43.17520639,191.38,191.37,1e-08]
[1753094599304,49.06353211,191.38,191.37,1e-08]
[1753094600522,69.34832572,191.38,191.37,1e-08]
[1753094601503,74.57353211,191.38,191.37,1e-08]
[1753094602028,75.28353211,191.38,191.37,1e-08]
[1753094602410,74.57353211,191.38,191.37,1e-08]
[1753094603013,63.46,191.38,191.37,1e-08]
[1753094603211,69.34832572,191.38,191.37,1e-08]
[1753094603733,5.22501383,191.39,191.37,1e-08]
[1753094603910,42.72501383,191.39,191.37,0.62000001]
[1753094604228,5.88832572,191.38,191.37,1e-08]
[1753094604840,37.5,191.39,191.37,1e-08]
[1753094604841,48.61337182,191.39,191.37,1e-08]
[1753094605920,42.7250461,191.39,191.37,1e-08]
[1753094606117,48.61337182,191.39,191.37,1e-08]
[1753094606324,42.7250461,191.39,191.37,1e-08]
[1753094606522,2.78580805,191.41,191.37,1e-08]
[1753094606729,48.61305419,191.4,191.38,0.62]
[1753094607025,11.11305419,191.4,191.38,0.62]
[1753094607209,48.65276174,191.41,191.39,0.62]
[1753094607410,48.65276174,191.41,191.38,7.83710742]
[1753094607620,26.0,191.39,191.38,8.45710742]
[1753094607825,0.06,191.41,191.39,0.62]
[1753094608023,0.06,191.41,191.39,7.94625819]
[1753094608212,0.06,191.41,191.4,0.62]
[1753094608607,0.06,191.41,191.4,7.94625819]
[1753094608808,5.94832572,191.41,191.4,7.32625819]
[1753094609032,0.06,191.41,191.4,7.94625819]
[1753094609326,0.06,191.41,191.37,5.88832573]
[1753094609327,44.17832572,191.41,191.37,1e-08]
[1753094609539,26.0,191.38,191.37,1e-08]
[1753094609726,37.56,191.39,191.37,1e-08]
[1753094609914,0.06,191.41,191.37,1e-08]
[1753094609915,37.62,191.41,191.37,5.88832573]
[1753094610229,0.06,191.41,191.37,12.62837038]
[1753094610550,0.06,191.41,191.38,0.62]
[1753094610712,0.06,191.41,191.38,7.36004465]
[1753094611036,0.06,191.41,191.39,0.62]
[1753094611535,0.06,191.41,191.4,0.62]
[1753094611930,26.06,191.41,191.4,0.62]
[1753094612821,0.06,191.41,191.4,148.61999999]
[1753094613137,0.06,191.41,191.4,235.23673401]
[1753094614223,0.06,191.41,191.4,148.61999999]
[1753094614538,0.06,191.41,191.4,184.36538694]
[1753094615337,0.06,191.41,191.4,190.93452007]
[1753094615719,0.06,191.41,191.4,196.82284579]
[1753094615925,0.06,191.41,191.4,228.53452007]
[1753094616848,0.06,191.41,191.4,205.18070297]
[1753094617817,0.06,191.41,191.4,167.58070297]
[1753094618126,0.06,191.41,191.4,228.51452007]
[1753094618439,0.06,191.41,191.4,190.93452007]
[1753094618624,0.06,191.41,191.4,222.62619435]
[1753094618945,0.06,191.41,191.4,228.51452007]
[1753094619839,0.06,191.41,191.4,222.62619435]
[1753094620045,0.06,191.41,191.4,228.51452007]
[1753094621053,0.06,191.41,191.4,222.62619435]
[1753094621642,0.06,191.41,191.4,228.51452007]
[1753094623651,0.06,191.41,191.4,222.62619435]
[1753094623965,0.06,191.41,191.4,228.51452007]
[1753094624771,0.06,191.41,191.4,14.41685]
[1753094625054,0.76,191.41,191.37,1e-08]
[1753094625429,5.88832572,191.38,191.37,1e-08]
[1753094626942,5.88832572,191.39,191.37,1e-08]
[1753094627336,5.88832572,191.4,191.37,1e-08]
[1753094627537,0.06,191.41,191.37,1e-08]
[1753094627733,5.88832572,191.4,191.37,1e-08]
[1753094627939,5.88832572,191.38,191.37,1e-08]
[1753094628369,6.58832572,191.38,191.37,1e-08]
[1753094628669,11.81353211,191.38,191.37,1e-08]
[1753094628868,37.81353211,191.38,191.37,1e-08]
[1753094629364,5.92520639,191.38,191.37,1e-08]
[1753094629562,11.81353211,191.38,191.37,1e-08]
[1753094631561,11.87353211,191.38,191.37,1e-08]
[1753094632140,54.65821608,191.38,191.37,1e-08]
[1753094632465,28.65821608,191.38,191.37,1e-08]
[1753094633233,5.98520639,191.38,191.37,1e-08]
[1753094633441,11.87353211,191.38,191.37,1e-08]
[1753094636258,5.98520639,191.38,191.37,1e-08]
[1753094636558,37.87353211,191.38,191.37,1e-08]
[1753094636736,11.87353211,191.38,191.37,1e-08]
[1753094638438,5.98520639,191.38,191.37,1e-08]
[1753094638651,11.87353211,191.38,191.37,1e-08]
[1753094639539,31.98520639,191.38,191.37,1e-08]
[1753094639850,11.87353211,191.38,191.37,1e-08]
[1753094640744,5.98520639,191.38,191.37,1e-08]
[1753094640940,11.87353211,191.38,191.37,1e-08]
[1753094641142,37.87353211,191.38,191.37,1e-08]
[1753094641348,11.87353211,191.38,191.37,1e-08]
[1753094641565,5.98520639,191.38,191.37,1e-08]
[1753094641765,11.87353211,191.38,191.37,1e-08]
[1753094642374,37.87353211,191.38,191.37,1e-08]
[1753094642573,42.78468397,191.35,191.33,1e-08]
[1753094642784,16.78468397,191.37,191.19,1.6291]
[1753094642785,26.0,191.3,191.19,1.6291]
[1753094643066,5.88832572,191.24,191.23,0.72]
[1753094643673,6.55832572,191.24,191.19,0.72]
[1753094643849,0.67,191.24,191.19,0.72]
[1753094644052,5.88832572,191.21,191.18,1.00117033]
[1753094644253,0.67,191.23,191.18,1.72117033]
[1753094644456,5.88832572,191.21,191.19,0.72]
[1753094644873,5.88832572,191.21,191.18,1.00117033]
[1753094645072,5.88832572,191.21,191.18,1.72117033]
[1753094645345,5.88832572,191.2,191.18,1.72117033]
[1753094645781,5.88832572,191.21,191.18,1.00117033]
[1753094646099,5.88832572,191.21,191.19,0.72]
[1753094646685,5.88832572,191.2,191.18,1.00117033]
[1753094646867,5.88832572,191.19,191.18,1.00117033]
[1753094647065,5.90039907,191.19,191.18,1.00117033]
[1753094647284,6.55832572,191.19,191.18,1.00117033]
[1753094648157,68.70993313,191.21,191.18,1.00117033]
[1753094648359,5.88832572,191.2,191.18,1.00117033]
[1753094648559,0.67,191.2,191.18,1.00117033]
[1753094648766,5.88832572,191.19,191.18,1.00117033]
[1753094648963,6.55832572,191.19,191.18,1.00117033]
[1753094649177,6.55832572,191.19,191.13,0.72]
[1753094649178,5.90039907,191.19,191.13,0.72]
[1753094649380,26.0,191.16,191.13,0.72]
[1753094649698,5.88832572,191.15,191.08,190.69335746]
[1753094649859,5.88832572,191.15,191.11,0.72]
[1753094650186,5.88832572,191.15,191.12,0.72]
[1753094650364,5.88832572,191.14,191.07,1.5414]
[1753094650565,5.88832572,191.12,191.08,0.72]
[1753094651289,5.88832572,191.12,191.09,0.72]
[1753094652370,5.88832572,191.13,191.09,0.72]
[1753094652574,5.88832572,191.12,191.09,0.72]
[1753094652888,31.90181275,191.14,191.09,0.72]
[1753094653109,31.90181275,191.14,191.03,37.62]
[1753094653110,5.88832572,191.1,191.03,37.62]
[1753094653410,38.13,191.13,191.04,5.9545035]
[1753094653706,5.88832572,191.08,191.04,5.9545035]
[1753094653994,5.88832572,191.08,191.05,0.72]
[1753094654176,5.88832572,191.08,191.04,5.2345035]
[1753094654177,5.88832572,191.08,191.02,44.06832572]
[1753094654379,5.88832572,191.07,191.02,38.18]
[1753094654689,31.88832572,191.09,191.03,6.60832572]
[1753094654875,31.88832572,191.09,191.04,0.72]
[1753094655277,5.88832572,191.08,191.05,0.72]
[1753094655575,5.88832572,191.08,191.03,5.88832572]
[1753094655777,31.88832572,191.1,191.04,6.60832572]
[1753094656001,26.0,191.1,191.05,0.72]
[1753094656203,31.88832572,191.1,191.05,6.60832572]
[1753094656382,5.88832572,191.11,191.06,0.72]
[1753094656585,5.23094627,191.17,191.07,6.60832572]
[1753094656783,5.88832572,191.12,191.07,0.72]
[1753094656980,0.67,191.13,191.07,5.88832572]
[1753094657182,0.67,191.16,191.08,0.72]
[1753094657381,5.88832572,191.12,191.08,0.72]
[1753094657604,5.88832572,191.12,191.09,0.72]
[1753094657806,5.88832572,191.16,191.1,5.88832572]
[1753094658007,0.67,191.22,191.14,5.88832572]
[1753094658184,5.88832572,191.19,191.14,5.88832572]
[1753094658385,5.88832572,191.19,191.15,0.72]
[1753094658606,0.67,191.22,191.12,6.60832572]
[1753094658607,5.88832572,191.17,191.12,6.60832572]
[1753094658904,5.88832572,191.17,191.1,43.6852]
[1753094658905,5.88832572,191.18,191.13,0.72]
[1753094659104,5.88832572,191.18,191.14,0.72]
[1753094659310,6.55832572,191.17,191.12,37.44]
[1753094659507,6.55832572,191.17,191.12,38.16]
[1753094659720,5.88832572,191.16,191.12,38.16]
[1753094661586,5.88832572,191.16,191.12,37.44]
[1753094661789,5.88832572,191.16,191.12,0.72]
[1753094662109,5.88832572,191.17,191.13,0.72]
[1753094662422,5.88832572,191.17,191.14,0.72]
[1753094662713,31.88832572,191.19,191.14,0.72]
[1753094663022,5.88832572,191.17,191.14,0.72]
[1753094663703,11.78939419,191.17,191.12,147.99999999]
[1753094664019,5.88832572,191.15,191.12,0.72]
[1753094664188,5.88832572,191.13,191.07,153.95362294]
[1753094664391,5.88832572,191.12,191.08,37.42]
[1753094664623,6.55832572,191.12,191.08,37.42]
[1753094664917,5.88832572,191.11,191.08,37.42]
[1753094665231,0.67,191.12,191.08,38.14]
[1753094665388,5.88832572,191.11,191.08,38.14]
[1753094665589,0.67,191.12,191.08,38.14]
[1753094665792,26.0,191.16,191.08,38.14]
[1753094665793,5.23216436,191.13,191.08,38.14]
[1753094665990,5.88832572,191.12,191.08,38.14]
[1753094666298,5.88832572,191.11,191.07,147.99999999]
[1753094666506,5.88832572,191.11,191.07,185.39999999]
[1753094666684,5.23216436,191.13,191.07,0.72]
[1753094666685,31.88832572,191.1,191.07,0.72]
[1753094667508,31.88832572,191.1,191.05,37.38]
[1753094667713,26.0,191.1,191.05,38.1]
[1753094667920,5.88832572,191.09,191.05,38.1]
[1753094668323,0.67,191.08,191.03,37.41]
[1753094668628,5.88832572,191.06,191.03,37.41]
[1753094668805,5.88832572,191.07,191.03,37.41]
[1753094669004,5.88832572,191.07,191.03,42.64476118]
[1753094669202,6.55832572,191.07,191.03,38.13]
[1753094669391,5.88832572,191.06,191.03,37.41]
[1753094669591,5.88832572,191.06,191.03,0.03]
[1753094669592,0.67,191.06,191.03,0.03]
[1753094669791,26.0,191.07,191.03,0.03]
[1753094669991,5.88832572,191.06,191.03,0.03]
[1753094670194,26.0,191.07,191.03,0.03]
[1753094670195,26.67,191.07,191.03,0.03]
[1753094670496,5.88832572,191.06,191.03,0.03]
[1753094670917,31.88832572,191.06,191.03,0.03]
[1753094671801,26.0,191.06,191.03,0.03]
[1753094671994,8.17572572,191.13,191.05,5.88832572]
[1753094672195,8.17572572,191.13,191.07,5.88832572]
[1753094672425,8.17572572,191.13,191.07,6.60832572]
[1753094672720,13.40782216,191.13,191.07,6.60832572]
[1753094672908,5.88832572,191.12,191.07,0.72]
[1753094673414,26.0,191.11,191.07,0.72]
[1753094673717,26.0,191.11,191.08,0.67]
[1753094674092,31.88832572,191.11,191.07,5.23362162]
[1753094674320,26.0,191.1,191.07,5.23362162]
[1753094674826,26.0,191.11,191.07,11.79194734]
[1753094675206,26.0,191.11,191.07,5.90362162]
[1753094675409,26.0,191.11,191.07,0.67]
[1753094676307,0.66,191.1,191.06,43.22832572]
[1753094676517,37.12097916,191.11,191.06,43.89832572]
[1753094676715,31.88832572,191.11,191.06,43.22832572]
[1753094676916,31.88832572,191.11,191.07,0.67]
[1753094677122,37.12098653,191.11,191.07,0.67]
[1753094677298,37.78098653,191.11,191.07,0.67]
[1753094678017,5.88832572,191.1,191.07,0.67]
[1753094678216,31.88832572,191.11,191.07,0.67]
[1753094678526,26.0,191.11,191.08,0.67]
[1753094678822,31.2326394,191.11,191.08,0.67]
[1753094679025,37.78096512,191.11,191.06,191.22832571]
[1753094679252,31.2326394,191.11,191.06,148.66999999]
[1753094679520,37.78096512,191.11,191.06,191.87832571]
[1753094679724,37.78096512,191.11,191.07,0.67]
[1753094679931,5.88832572,191.09,191.06,147.99999999]
[1753094680228,5.88832572,191.07,191.03,0.03]
[1753094680405,5.88832572,191.06,191.03,0.03]
[1753094680605,5.88832572,191.04,191.03,0.03]
[1753094680927,26.0,191.07,191.04,0.67]
[1753094681231,5.88832572,191.11,191.04,148.66999999]
[1753094681405,5.88832572,191.1,191.05,5.88832572]
[1753094681610,26.66,191.12,191.05,43.36832572]
[1753094681831,5.88832572,191.11,191.06,0.67]
[1753094682207,26.66,191.12,191.07,0.67]
[1753094682407,32.54832572,191.12,191.07,0.67]
[1753094682622,5.88832572,191.11,191.07,0.67]
[1753094683320,32.54832572,191.12,191.07,6.55832572]
[1753094683833,31.89244629,191.12,191.07,0.67]
[1753094684023,37.78077201,191.12,191.07,0.67]
[1753094684235,0.66,191.11,191.06,5.88832572]
[1753094684610,0.66,191.11,191.06,6.55832572]
[1753094684811,0.66,191.11,191.07,0.67]
[1753094685903,0.66,191.1,191.06,5.88832572]
[1753094686106,0.66,191.1,191.05,192.03832572]
[1753094686308,0.66,191.1,191.06,0.67]
[1753094686504,11.12104433,191.11,191.06,5.88832572]
[1753094686747,11.12104433,191.11,191.07,0.67]
[1753094686938,11.78104433,191.11,191.07,0.67]
[1753094687829,37.12070836,191.12,191.06,5.88832572]
[1753094688028,31.88832572,191.12,191.05,42.75416673]
[1753094688227,37.12068044,191.12,191.06,6.55832572]
[1753094688730,0.66,191.11,191.04,5.90446127]
[1753094688922,26.0,191.12,191.05,38.19]
[1753094689243,31.88832572,191.12,191.06,6.55832572]
[1753094689442,31.23235883,191.12,191.06,6.55832572]
[1753094689618,31.88832572,191.12,191.06,6.55832572]
[1753094690637,31.88832572,191.12,191.06,11.79209069]
[1753094691042,31.88832572,191.12,191.07,38.15]
[1753094691244,26.0,191.12,191.07,37.48]
[1753094691426,32.54832572,191.12,191.08,0.67]
[1753094692630,26.0,191.12,191.08,0.67]
[1753094692839,26.0,191.12,191.07,190.71361199]
[1753094692840,0.66,191.14,191.09,0.67]
[1753094693037,6.54832572,191.13,191.09,0.67]
[1753094693630,26.66,191.15,191.09,0.67]
[1753094693836,5.88832572,191.13,191.07,196.58193771]
[1753094694135,6.54832572,191.13,191.08,37.44]
[1753094694336,0.66,191.12,191.08,37.44]
[1753094694637,0.66,191.12,191.08,38.11]
[1753094695328,0.66,191.12,191.08,43.34319668]
[1753094695531,5.88832572,191.13,191.08,43.34319668]
[1753094695713,6.54832572,191.13,191.08,190.67319668]
[1753094696035,6.54832572,191.13,191.09,0.67]
[1753094696638,6.54832572,191.13,191.09,5.90300482]
[1753094697618,26.0,191.15,191.1,0.67]
[1753094697846,26.0,191.15,191.1,6.55832572]
[1753094698146,39.6306,191.17,191.11,6.55832572]
[1753094698147,8.05892572,191.17,191.11,6.55832572]
[1753094698335,8.05892572,191.17,191.11,154.55832572]
[1753094698642,8.05892572,191.17,191.11,191.95832572]
[1753094698851,8.05892572,191.17,191.12,5.23231477]
[1753094699353,6.54832572,191.17,191.12,5.90231477]
[1753094699538,0.66,191.16,191.12,5.90231477]
[1753094699935,5.88832572,191.14,191.11,148.0]
[1753094700336,6.54832572,191.13,191.11,153.23250923]
[1753094700546,6.54832572,191.13,191.11,5.23250923]
[1753094700740,6.54832572,191.12,191.07,0.03]
[1753094700930,26.0,191.11,191.07,0.03]
[1753094701129,26.66,191.11,191.07,0.03]
[1753094701350,6.54832572,191.1,191.07,0.03]
[1753094701728,6.54832572,191.09,191.07,0.03]
[1753094702249,6.54832572,191.08,191.07,0.03]
[1753094703060,0.66,191.08,191.07,0.03]
[1753094703350,11.78173581,191.08,191.07,0.03]
[1753094703552,37.78173581,191.08,191.07,0.03]
[1753094703757,32.54832572,191.08,191.07,0.03]
[1753094703956,6.55832572,191.11,191.07,0.69]
[1753094704138,26.67,191.11,191.07,0.69]
[1753094704461,6.55832572,191.13,191.08,0.66]
[1753094704655,6.55832572,191.12,191.07,0.03]
[1753094704842,0.67,191.12,191.07,5.26368399]
[1753094705041,6.55832572,191.11,191.07,5.26368399]
[1753094705364,6.55832572,191.12,191.07,5.92368399]
[1753094705571,6.55832572,191.11,191.07,5.26368399]
[1753094705866,5.88832572,191.11,191.07,5.26368399]
[1753094706038,0.67,191.1,191.07,5.26368399]
[1753094706238,5.88832572,191.12,191.08,0.66]
[1753094706746,5.88832572,191.16,191.1,5.88832572]
[1753094706955,5.88832572,191.17,191.12,5.23231477]
[1753094707153,5.88832572,191.19,191.13,6.54832572]
[1753094707451,37.32,191.21,191.16,5.88832572]
[1753094707758,37.32,191.21,191.17,0.66]
[1753094707933,5.88832572,191.22,191.17,0.66]
[1753094708135,8.18852572,191.23,191.17,6.54832572]
[1753094708440,5.88832572,191.2,191.14,6.54832572]
[1753094708638,6.55832572,191.2,191.14,6.54832572]
[1753094708833,6.55832572,191.2,191.15,5.23149359]
[1753094709243,6.55832572,191.19,191.15,5.23149359]
[1753094709552,6.55832572,191.18,191.15,5.23149359]
[1753094709754,0.67,191.17,191.15,5.23149359]
[1753094709959,6.55832572,191.16,191.1,5.88832572]
[1753094710134,0.67,191.15,191.09,5.8930643]
[1753094710331,5.88832572,191.14,191.09,5.8930643]
[1753094710531,5.88832572,191.14,191.1,0.66]
[1753094711035,5.88832572,191.14,191.11,5.23258856]
[1753094711259,0.67,191.15,191.11,5.23258856]
[1753094711260,5.88832572,191.15,191.11,5.23258856]
[1753094711440,5.88832572,191.15,191.12,0.66]
[1753094712340,5.88832572,191.15,191.13,5.23204101]
[1753094712755,5.88832572,191.15,191.12,0.66]
[1753094712941,5.88832572,191.15,191.12,5.23226286]
[1753094713259,31.88832572,191.15,191.12,5.23226286]
[1753094713456,32.55832572,191.15,191.12,5.23226286]
[1753094714049,26.67,191.15,191.12,5.23226286]
[1753094714236,31.88832572,191.15,191.12,5.23226286]
[1753094714742,31.88832572,191.15,191.11,5.23258856]
[1753094714949,5.88832572,191.14,191.11,5.23258856]
[1753094715149,26.67,191.15,191.11,5.23258856]
[1753094715460,5.88832572,191.14,191.11,5.23258856]
[1753094716644,5.88832572,191.14,191.1,5.23286237]
[1753094716861,5.88832572,191.14,191.11,0.66]
[1753094717549,5.88832572,191.15,191.11,0.66]
[1753094717754,26.0,191.16,191.11,0.66]
[1753094718070,5.88832572,191.15,191.11,0.66]
[1753094718244,5.88832572,191.18,191.12,6.54832572]
[1753094718559,5.88832572,191.18,191.13,0.66]
[1753094718758,5.88832572,191.18,191.12,5.88832572]
[1753094718759,5.88832572,191.18,191.14,5.23176729]
[1753094718968,5.88832572,191.18,191.14,5.89176729]
[1753094719658,5.88832572,191.17,191.14,5.23176729]
[1753094719867,5.88832572,191.19,191.15,0.66]
[1753094720077,5.88832572,191.2,191.15,0.66]
[1753094720241,5.88832572,191.18,191.14,5.23176729]
[1753094720443,0.67,191.17,191.14,5.23176729]
[1753094721973,5.88832572,191.18,191.14,5.23176729]
[1753094722178,32.55832572,191.19,191.14,5.89176729]
[1753094722673,31.88832572,191.19,191.14,5.89176729]
[1753094722877,32.55832572,191.19,191.14,5.89176729]
[1753094723243,26.67,191.19,191.14,5.89176729]
[1753094723441,32.55832572,191.19,191.14,5.89176729]
[1753094724169,5.88832572,191.2,191.15,0.66]
[1753094724376,0.67,191.21,191.16,0.66]
[1753094724676,5.88832572,191.2,191.16,0.66]
[1753094724842,0.67,191.2,191.16,0.66]
[1753094725044,6.55832572,191.2,191.16,0.66]
[1753094725568,0.67,191.2,191.17,5.23094627]
[1753094725864,63.2,191.22,191.17,5.89094627]
[1753094726071,69.08832572,191.22,191.18,0.66]
[1753094726282,43.08832572,191.22,191.18,0.66]
[1753094726742,5.88832572,191.2,191.16,148.0]
[1753094726942,5.88832572,191.17,191.14,2.7341893]
[1753094727142,5.88832572,191.15,191.14,2.7341893]
[1753094727347,0.67,191.16,191.14,2.7341893]
[1753094727570,5.88832572,191.15,191.14,2.7341893]
[1753094728779,0.67,191.16,191.14,7.96593875]
[1753094729076,6.55832572,191.16,191.14,2.7341893]
[1753094729776,31.88832572,191.15,191.14,2.7341893]
[1753094730081,26.0,191.15,191.14,2.7341893]
[1753094730253,32.55832572,191.16,191.14,7.96582891]
[1753094730450,37.18,191.19,191.14,7.96582891]
[1753094730451,5.88832572,191.18,191.14,8.62582891]
[1753094730863,6.55832572,191.18,191.14,8.62582891]
[1753094731804,5.88832572,191.16,191.14,2.7341893]
[1753094732154,6.55832572,191.16,191.14,2.7341893]
[1753094733661,0.67,191.16,191.14,2.7341893]
[1753094733858,5.88832572,191.16,191.14,2.7341893]
[1753094734055,6.60832572,191.16,191.14,2.7341893]
[1753094734662,32.60832572,191.16,191.14,7.96594758]
[1753094734882,32.60832572,191.16,191.14,2.7341893]
[1753094735282,26.0,191.16,191.14,7.96593492]
[1753094735577,31.88832572,191.16,191.14,7.96593492]
[1753094735778,32.60832572,191.16,191.14,2.7341893]
[1753094735970,31.88832572,191.16,191.14,2.7341893]
[1753094736169,6.60832572,191.15,191.14,2.7341893]
[1753094736573,43.72832572,191.15,191.14,2.7341893]
[1753094737862,48.95981931,191.15,191.14,2.7341893]
[1753094738978,65.74450328,191.15,191.14,2.7341893]
[1753094741085,69.07149359,191.15,191.14,2.7341893]
[1753094741408,1.5145,191.22,191.14,14.57428231]
[1753094741702,6.60832572,191.22,191.16,5.88832572]
[1753094741871,5.88832572,191.22,191.17,0.72]
[1753094742075,5.88832572,191.21,191.18,0.72]
[1753094742273,5.88832572,191.22,191.18,0.72]
[1753094742603,5.88832572,191.22,191.19,5.23039907]
[1753094743111,5.88832572,191.23,191.19,5.23039907]
[1753094743403,0.72,191.24,191.19,5.95039907]
[1753094743604,5.88832572,191.25,191.2,0.72]
[1753094743774,43.00832572,191.25,191.21,0.72]
[1753094744176,5.88832572,191.24,191.19,5.95039907]
[1753094744376,5.88832572,191.23,191.19,5.95039907]
[1753094744596,0.72,191.24,191.19,5.95039907]
[1753094744780,6.60832572,191.24,191.19,5.95039907]
[1753094745105,37.12,191.25,191.19,11.11872479]
[1753094745282,37.12,191.25,191.2,0.72]
[1753094745481,43.00832572,191.25,191.21,0.72]
[1753094746000,5.88832572,191.24,191.19,5.95039907]
[1753094746202,5.88832572,191.24,191.2,0.72]
[1753094746569,37.84,191.25,191.2,0.72]
[1753094746780,6.60832572,191.24,191.2,5.94997636]
[1753094747492,37.12,191.25,191.2,5.22997636]
[1753094747814,5.88832572,191.24,191.21,0.72]
[1753094747969,5.88832572,191.24,191.21,5.94976942]
[1753094748398,37.84,191.25,191.21,5.94976942]
[1753094748611,37.12,191.25,191.21,5.94976942]
[1753094748781,5.88832572,191.24,191.21,5.94976942]
[1753094749702,5.88832572,191.24,191.21,5.22976942]
[1753094749874,6.60832572,191.24,191.2,5.23012552]
[1753094750072,5.88832572,191.24,191.21,0.72]
[1753094750276,37.12,191.25,191.21,0.72]
[1753094750498,43.00832572,191.25,191.21,0.72]
[1753094750709,5.88832572,191.25,191.21,0.72]
[1753094751094,5.88832572,191.24,191.21,0.72]